[Event "CZE-ch U16 Girls 2023"]
[Site "Teplice"]
[Date "2023.03.13"]
[Round "3.11"]
[White "Reznickova, Sibyla"]
[Black "Hetfleischova, Elen"]
[Result "0-1"]
[ECO "D20"]
[WhiteElo "1386"]
[BlackElo "1623"]
[Annotator "NA RC COMBH"]
[PlyCount "58"]
[EventDate "2023.03.09"]
[EventType "swiss"]
[EventCountry "CZE"]
[SourceTitle "playchess.com"]
[Source "ChessBase"]
[SourceQuality "1"]
[TimeControl "40/5400+30:1800+30"]

1. d4 {[%emt 0:00:30]} d5 {[%emt 0:00:30]} 2. c4 {[%emt 0:00:34]} dxc4 {[%emt 0:00:30]} 3. e4 {[%emt 0:00:21]} Nf6 {[%emt 0:00:40]} 4. Nc3 {[%emt 0:00:19]} e5 {[%emt 0:02:29]} 5. d5 {[%emt 0:02:10]} a6 {[%emt 0:04:02]} 6. Bg5 {[%emt 0:03:56]} h6 {[%emt 0:02:22]} 7. Bh4 {[%emt 0:03:18]} b5 {[%emt 0:07:56]} 8. a4 {[%emt 0:00:56]} b4 {[%emt 0:02:05]} 9. Bxf6 {[%emt 0:03:43]} Qxf6 {[%emt 0:00:42]} 10. Na2 {[%emt 0:04:23]} Bc5 {[%emt 0:04:22]} 11. Nf3 {[%emt 0:02:33]} O-O {[%emt 0:02:58]} 12. Bxc4 {[%emt 0:01:15]} Qg6 {[%emt 0:02:11]} 13. O-O {[%emt 0:02:39]} Qxe4 {[%emt 0:02:37]} 14. Bd3 {[%emt 0:07:01]} Qf4 {[%emt 0:00:49]} 15. Re1 {[%emt 0:03:22]} Nd7 {[%emt 0:04:26]} 16. Re4 {[%emt 0:03:27]} Qf6 {[%emt 0:01:49]} 17. Nxb4 {[%emt 0:03:02]} Qb6 {[%emt 0:03:07]} 18. a5 {[%emt 0:08:00]} Qd6 {[%emt 0:03:50]} 19. Nc6 {[%emt 0:10:25]} f5 {[%emt 0:02:22]} 20. Rxe5 {[%emt 0:02:50]} Nxe5 {[%emt 0:00:18]} 21. Nfxe5 {[%emt 0:00:32]} Bb7 {[%emt 0:03:14]} 22. Bc4 {[%emt 0:01:33]} Kh7 {[%emt 0:02:15]} 23. Qh5 {[%emt 0:02:24]} Bxc6 {[%emt 0:07:18]} 24. Nxc6 {[%emt 0:02:39]} Bxf2+ {[%emt 0:02:58]} 25. Kxf2 {[%emt 0:02:56]} Qc5+ {[%emt 0:00:45]} 26. Kg3 {[%emt 0:10:37]} Qxc4 {[%emt 0:03:33]} 27. Re1 {[%emt 0:05:26]} Qxd5 {[%emt 0:02:43]} 28. Ne7 {[%emt 0:02:00]} f4+ {[%emt 0:04:15]} 29. Kg4 {[%emt 0:00:46]} Qxg2+ {[%emt 0:00:14]} 0-1

[Event "CZE-ch U16 Girls 2023"]
[Site "Teplice"]
[Date "2023.03.13"]
[Round "3.12"]
[White "Sterikova, Marketa"]
[Black "Hrbkova, Johana"]
[Result "1-0"]
[ECO "C49"]
[WhiteElo "1254"]
[BlackElo "1254"]
[Annotator "NA RC COMBH"]
[PlyCount "75"]
[EventDate "2023.03.09"]
[EventType "swiss"]
[EventCountry "CZE"]
[SourceTitle "playchess.com"]
[Source "ChessBase"]
[SourceQuality "1"]
[TimeControl "40/5400+30:1800+30"]

1. e4 {[%emt 0:00:06]} e5 {[%emt 0:00:06]} 2. Nc3 {[%emt 0:00:02]} Nf6 {[%emt 0:00:18]} 3. Nf3 {[%emt 0:00:19]} Nc6 {[%emt 0:00:39]} 4. Bb5 {[%emt 0:01:07]} Bb4 {[%emt 0:11:18]} 5. d3 {[%emt 0:02:14]} Qe7 {[%emt 0:02:14]} 6. Bd2 {[%emt 0:01:49]} O-O {[%emt 0:02:13]} 7. a3 {[%emt 0:00:34]} Bc5 {[%emt 0:01:25]} 8. Bg5 {[%emt 0:03:21]} Qd6 {[%emt 0:08:32]} 9. O-O {[%emt 0:04:02]} Nd4 {[%emt 0:06:43]} 10. Bc4 {[%emt 0:02:28]} a6 {[%emt 0:03:31]} 11. Bh4 {[%emt 0:08:16]} b5 {[%emt 0:09:10]} 12. Ba2 {[%emt 0:00:50]} c6 {[%emt 0:03:04]} 13. Bg3 {[%emt 0:02:37]} Nxf3+ {[%emt 0:02:55]} 14. Qxf3 {[%emt 0:00:12]} Re8 {[%emt 0:02:25]} 15. Bh4 {[%emt 0:00:17]} Bb7 {[%emt 0:04:55]} 16. Bxf6 {[%emt 0:00:13]} Qxf6 {[%emt 0:01:31]} 17. Qxf6 {[%emt 0:00:24]} gxf6 {[%emt 0:00:08]} 18. Kh1 {[%emt 0:00:20]} Rad8 {[%emt 0:04:22]} 19. f4 {[%emt 0:00:25]} d5 {[%emt 0:01:34]} 20. exd5 {[%emt 0:00:48]} cxd5 {[%emt 0:00:18]} 21. fxe5 {[%emt 0:00:11]} fxe5 {[%emt 0:00:17]} 22. Rae1 {[%emt 0:01:15]} Bc6 {[%emt 0:03:32]} 23. Ne4 {[%emt 0:05:16]} Be7 {[%emt 0:06:22]} 24. Nf6+ {[%emt 0:00:50]} Bxf6 {[%emt 0:00:11]} 25. Rxf6 {[%emt 0:00:06]} Rc8 {[%emt 0:04:09]} 26. Rf5 {[%emt 0:00:31]} e4 {[%emt 0:04:16]} 27. dxe4 {[%emt 0:00:43]} Rxe4 {[%emt 0:00:54]} 28. Rxe4 {[%emt 0:00:38]} dxe4 {[%emt 0:00:13]} 29. Bxf7+ {[%emt 0:00:34]} Kg7 {[%emt 0:00:27]} 30. Bh5 {[%emt 0:01:17]} Kh6 {[%emt 0:06:12]} 31. Bg4 {[%emt 0:01:26]} Rc7 {[%emt 0:04:17]} 32. Re5 {[%emt 0:01:07]} Bb7 {[%emt 0:01:41]} 33. c3 {[%emt 0:00:14]} a5 {[%emt 0:05:27]} 34. Rxb5 {[%emt 0:00:52]} Re7 {[%emt 0:00:46]} 35. Kg1 {[%emt 0:00:30]} e3 {[%emt 0:00:20]} 36. h3 e2 {[%emt 0:00:31]} 37. Bxe2 {[%emt 0:02:51]} Rxe2 {[%emt 0:00:07]} 38. Rxb7 1-0

[Event "CZE-ch U16 Girls 2023"]
[Site "Teplice"]
[Date "2023.03.14"]
[Round "5.1"]
[White "Zelbova, Lada"]
[Black "Kavanova, Anezka"]
[Result "1-0"]
[ECO "B70"]
[WhiteElo "1822"]
[BlackElo "1384"]
[Annotator "NA RC COMBH"]
[PlyCount "67"]
[EventDate "2023.03.09"]
[EventType "swiss"]
[EventCountry "CZE"]
[SourceTitle "playchess.com"]
[Source "ChessBase"]
[SourceQuality "1"]
[TimeControl "40/5400+30:1800+30"]

1. e4 {[%emt 0:00:07]} c5 {[%emt 0:00:05]} 2. Nf3 {[%emt 0:00:08]} d6 {[%emt 0:00:08]} 3. d4 {[%emt 0:00:14]} cxd4 {[%emt 0:00:06]} 4. Nxd4 {[%emt 0:00:15]} Nf6 {[%emt 0:00:06]} 5. Nc3 {[%emt 0:00:06]} g6 {[%emt 0:00:07]} 6. g3 {[%emt 0:03:37]} Bg7 {[%emt 0:00:37]} 7. Bg2 {[%emt 0:00:17]} O-O {[%emt 0:04:02]} 8. O-O {[%emt 0:00:15]} Nc6 {[%emt 0:02:41]} 9. Nde2 {[%emt 0:00:31]} Bg4 {[%emt 0:11:03]} 10. h3 {[%emt 0:00:55]} Bd7 {[%emt 0:07:03]} 11. Be3 {[%emt 0:00:37]} Ne5 {[%emt 0:02:35]} 12. b3 {[%emt 0:00:57]} Qc8 {[%emt 0:00:37]} 13. f4 {[%emt 0:08:06]} Nc6 {[%emt 0:00:12]} 14. Kh2 {[%emt 0:02:21]} Rd8 {[%emt 0:02:31]} 15. Qd2 {[%emt 0:05:14]} Be6 {[%emt 0:02:28]} 16. Nd5 {[%emt 0:06:42]} Ne8 {[%emt 0:06:10]} 17. Rac1 {[%emt 0:09:31]} Kf8 {[%emt 0:04:32]} 18. c4 {[%emt 0:04:48]} b6 {[%emt 0:01:46]} 19. Rc2 {[%emt 0:05:54]} Rb8 {[%emt 0:01:52]} 20. Rfc1 {[%emt 0:00:47]} Qd7 {[%emt 0:01:16]} 21. Nd4 {[%emt 0:02:43]} Bxd5 {[%emt 0:03:22]} 22. cxd5 {[%emt 0:00:56]} Nxd4 {[%emt 0:00:14]} 23. Bxd4 {[%emt 0:00:30]} f6 {[%emt 0:03:28]} 24. Rc6 {[%emt 0:06:37]} Rbc8 {[%emt 0:00:49]} 25. Qc3 {[%emt 0:01:57]} Rxc6 {[%emt 0:01:05]} 26. dxc6 {[%emt 0:00:49]} Qc7 {[%emt 0:00:20]} 27. Qc4 {[%emt 0:04:46]} Bh6 {[%emt 0:01:26]} 28. Be3 {[%emt 0:10:31]} Rc8 {[%emt 0:01:01]} 29. Bf1 {[%emt 0:00:50]} Qb8 {[%emt 0:02:27]} 30. b4 {[%emt 0:02:19]} Rc7 {[%emt 0:02:54]} 31. Qd5 {[%emt 0:01:27]} e5 {[%emt 0:02:38]} 32. b5 {[%emt 0:05:13]} Qd8 {[%emt 0:03:08]} 33. Rc3 {[%emt 0:02:07]} Kg7 {[%emt 0:02:48]} 34. Bc4 1-0

[Event "CZE-ch U16 Girls 2023"]
[Site "Teplice"]
[Date "2023.03.14"]
[Round "5.2"]
[White "Vacekova, Anita"]
[Black "Havelkova, Beata"]
[Result "0-1"]
[ECO "B42"]
[WhiteElo "1350"]
[BlackElo "1670"]
[Annotator "NA RC COMBH"]
[PlyCount "144"]
[EventDate "2023.03.09"]
[EventType "swiss"]
[EventCountry "CZE"]
[SourceTitle "playchess.com"]
[Source "ChessBase"]
[SourceQuality "1"]
[TimeControl "40/5400+30:1800+30"]

1. e4 {[%emt 0:00:03]} c5 {[%emt 0:00:04]} 2. Nf3 {[%emt 0:00:07]} e6 {[%emt 0:00:07]} 3. d4 {[%emt 0:00:25]} cxd4 {[%emt 0:00:07]} 4. Nxd4 {[%emt 0:00:03]} a6 {[%emt 0:00:07]} 5. Bd3 {[%emt 0:00:13]} Bc5 {[%emt 0:00:08]} 6. Nb3 {[%emt 0:00:12]} Be7 {[%emt 0:00:10]} 7. Qg4 {[%emt 0:00:23]} g6 {[%emt 0:00:08]} 8. Qe2 {[%emt 0:00:09]} d6 {[%emt 0:00:40]} 9. Be3 {[%emt 0:03:39]} b6 {[%emt 0:01:50]} 10. O-O {[%emt 0:04:07]} Bb7 {[%emt 0:00:14]} 11. N1d2 {[%emt 0:04:15]} Nd7 {[%emt 0:00:22]} 12. a4 {[%emt 0:08:40]} Ngf6 {[%emt 0:00:38]} 13. a5 {[%emt 0:06:33]} b5 {[%emt 0:01:27]} 14. c4 {[%emt 0:10:45]} bxc4 {[%emt 0:07:17]} 15. Nxc4 {[%emt 0:02:31]} O-O {[%emt 0:04:27]} 16. Nb6 {[%emt 0:10:46]} Nxb6 {[%emt 0:11:34]} 17. Bxb6 {[%emt 0:03:59]} Qd7 {[%emt 0:05:34]} 18. Rfc1 {[%emt 0:06:04]} Rfc8 {[%emt 0:02:06]} 19. f3 {[%emt 0:02:45]} Bd8 {[%emt 0:12:05]} 20. Rxc8 {[%emt 0:05:39]} Qxc8 {[%emt 0:03:44]} 21. Bxd8 {[%emt 0:04:57]} Qxd8 {[%emt 0:00:11]} 22. Nd4 {[%emt 0:04:56]} d5 {[%emt 0:05:34]} 23. e5 {[%emt 0:01:15]} Nd7 {[%emt 0:01:41]} 24. f4 {[%emt 0:01:11]} Nc5 {[%emt 0:03:26]} 25. Bc2 {[%emt 0:00:35]} Nd7 {[%emt 0:13:12]} 26. b4 {[%emt 0:01:59]} Nb8 {[%emt 0:00:36]} 27. Bd3 {[%emt 0:01:18]} Kg7 {[%emt 0:07:09]} 28. g4 {[%emt 0:02:02]} Qc7 {[%emt 0:02:33]} 29. Rb1 {[%emt 0:05:25]} Qc3 {[%emt 0:02:44]} 30. Nf3 {[%emt 0:02:09]} Nc6 {[%emt 0:00:58]} 31. Qd2 {[%emt 0:00:36]} d4 {[%emt 0:01:58]} 32. Be4 {[%emt 0:02:29]} Rb8 {[%emt 0:03:44]} 33. Qxc3 {[%emt 0:01:32]} dxc3 {[%emt 0:00:08]} 34. Kf2 {[%emt 0:00:29]} Ne7 {[%emt 0:01:07]} 35. Bd3 {[%emt 0:00:53]} Nd5 {[%emt 0:00:24]} 36. Kg3 {[%emt 0:00:48]} Bc8 {[%emt 0:03:28]} 37. Nd4 {[%emt 0:01:50]} Rxb4 {[%emt 0:02:20]} 38. Ne2 {[%emt 0:02:45]} Ra4 {[%emt 0:00:42]} 39. Rc1 {[%emt 0:00:18]} Rxa5 {[%emt 0:00:23]} 40. Be4 {[%emt 0:00:32]} Ra3 {[%emt 0:01:48]} 41. Bxd5 {[%emt 0:30:45]} exd5 {[%emt 0:30:11]} 42. Rxc3 {[%emt 0:00:29]} Rxc3+ {[%emt 0:00:09]} 43. Nxc3 {[%emt 0:00:03]} d4 {[%emt 0:03:18]} 44. Nb1 {[%emt 0:00:00]} Bb7 {[%emt 0:00:00]} 45. Kf2 {[%emt 0:00:00]} Be4 {[%emt 0:00:00]} 46. Nd2 {[%emt 0:00:00]} Bc2 {[%emt 0:00:00]} 47. Nc4 {[%emt 0:00:00]} Kf8 {[%emt 0:00:00]} 48. Ke2 {[%emt 0:00:00]} Ke7 {[%emt 0:00:00]} 49. Kd2 {[%emt 0:00:00]} d3 {[%emt 0:00:00]} 50. f5 {[%emt 0:00:00]} Kd7 {[%emt 0:00:00]} 51. Nd6 {[%emt 0:00:00]} a5 {[%emt 0:00:00]} 52. Nxf7 {[%emt 0:00:00]} gxf5 {[%emt 0:00:37]} 53. gxf5 {[%emt 0:00:00]} a4 {[%emt 0:00:31]} 54. e6+ {[%emt 0:00:00]} Ke7 {[%emt 0:00:16]} 55. Ne5 {[%emt 0:00:00]} a3 {[%emt 0:02:00]} 56. Nc6+ {[%emt 0:00:00]} Ke8 {[%emt 0:01:32]} 57. Nb4 {[%emt 0:02:31]} Bb1 {[%emt 0:00:06]} 58. f6 {[%emt 0:01:17]} a2 {[%emt 0:00:13]} 59. Nxa2 {[%emt 0:00:14]} Bxa2 {[%emt 0:00:04]} 60. e7 {[%emt 0:00:19]} Bc4 {[%emt 0:00:55]} 61. Ke3 {[%emt 0:02:17]} Kf7 {[%emt 0:00:11]} 62. Kd2 {[%emt 0:00:23]} Bb5 {[%emt 0:00:05]} 63. Ke3 {[%emt 0:00:06]} Kxf6 {[%emt 0:00:06]} 64. e8=N+ {[%emt 0:00:10]} Bxe8 {[%emt 0:00:10]} 65. Kxd3 {[%emt 0:00:19]} Kf5 {[%emt 0:00:12]} 66. Ke3 {[%emt 0:00:06]} Kg4 {[%emt 0:00:14]} 67. Kf2 {[%emt 0:00:26]} Kh3 {[%emt 0:00:36]} 68. Kf3 {[%emt 0:00:09]} Kxh2 {[%emt 0:00:14]} 69. Kg4 {[%emt 0:00:02]} Bg6 {[%emt 0:00:18]} 70. Kh4 {[%emt 0:00:04]} h5 {[%emt 0:00:47]} 71. Kg5 {[%emt 0:00:01]} Kg3 {[%emt 0:00:17]} 72. Kxg6 {[%emt 0:00:15]} h4 {[%emt 0:00:05]} 0-1

[Event "CZE-ch U16 Girls 2023"]
[Site "Teplice"]
[Date "2023.03.14"]
[Round "5.3"]
[White "Dobsa, Emma"]
[Black "Cinkova, Vicky"]
[Result "0-1"]
[ECO "B01"]
[WhiteElo "1449"]
[BlackElo "1285"]
[Annotator "NA RC COMBH"]
[PlyCount "40"]
[EventDate "2023.03.09"]
[EventType "swiss"]
[EventCountry "CZE"]
[SourceTitle "playchess.com"]
[Source "ChessBase"]
[SourceQuality "1"]
[TimeControl "40/5400+30:1800+30"]

1. e4 {[%emt 0:00:05]} d5 {[%emt 0:00:10]} 2. exd5 {[%emt 0:00:06]} Qxd5 {[%emt 0:00:14]} 3. Nc3 {[%emt 0:00:06]} Qd8 {[%emt 0:00:13]} 4. d4 {[%emt 0:00:11]} Nf6 {[%emt 0:02:11]} 5. Nf3 {[%emt 0:01:21]} Bg4 {[%emt 0:00:26]} 6. h3 {[%emt 0:00:30]} Bxf3 {[%emt 0:00:28]} 7. Qxf3 {[%emt 0:00:11]} c6 {[%emt 0:00:14]} 8. Be3 {[%emt 0:01:38]} e6 {[%emt 0:01:02]} 9. O-O-O {[%emt 0:06:49]} Nbd7 {[%emt 0:01:03]} 10. Bc4 {[%emt 0:04:48]} Bd6 {[%emt 0:06:52]} 11. g4 {[%emt 0:06:38]} Nb6 {[%emt 0:08:12]} 12. Bd3 {[%emt 0:03:29]} Qc7 {[%emt 0:02:46]} 13. g5 {[%emt 0:07:14]} Nfd5 {[%emt 0:05:39]} 14. Ne4 {[%emt 0:03:13]} Nxe3 {[%emt 0:07:34]} 15. Nxd6+ {[%emt 0:01:03]} Qxd6 {[%emt 0:00:07]} 16. fxe3 {[%emt 0:00:12]} Qd5 {[%emt 0:03:11]} 17. Rhf1 {[%emt 0:03:57]} Rf8 {[%emt 0:03:45]} 18. Qg3 {[%emt 0:17:49]} Qxa2 {[%emt 0:06:57]} 19. g6 {[%emt 0:03:20]} hxg6 {[%emt 0:01:42]} 20. Bxg6 {[%emt 0:00:41]} Nc4 {[%emt 0:01:03]} 0-1

[Event "CZE-ch U16 Girls 2023"]
[Site "Teplice"]
[Date "2023.03.14"]
[Round "5.4"]
[White "Dominikova, Denisa"]
[Black "Dudkova, Josefina"]
[Result "0-1"]
[ECO "B01"]
[WhiteElo "1301"]
[BlackElo "1519"]
[Annotator "NA RC COMBH"]
[PlyCount "92"]
[EventDate "2023.03.09"]
[EventType "swiss"]
[EventCountry "CZE"]
[SourceTitle "playchess.com"]
[Source "ChessBase"]
[SourceQuality "1"]
[TimeControl "40/5400+30:1800+30"]

1. e4 {[%emt 0:00:06]} d5 {[%emt 0:00:05]} 2. exd5 {[%emt 0:00:12]} Qxd5 {[%emt 0:00:06]} 3. Nc3 {[%emt 0:00:28]} Qd6 {[%emt 0:00:05]} 4. d4 {[%emt 0:00:33]} Nf6 {[%emt 0:00:24]} 5. Nf3 {[%emt 0:00:50]} c6 {[%emt 0:00:09]} 6. h3 {[%emt 0:00:37]} Bf5 {[%emt 0:00:48]} 7. Bd3 {[%emt 0:01:16]} Bxd3 {[%emt 0:01:44]} 8. Qxd3 {[%emt 0:00:58]} Nbd7 {[%emt 0:02:48]} 9. O-O {[%emt 0:01:21]} e6 {[%emt 0:00:57]} 10. Be3 {[%emt 0:04:10]} Be7 {[%emt 0:03:19]} 11. Rfe1 {[%emt 0:05:56]} h6 {[%emt 0:05:24]} 12. Nd2 {[%emt 0:05:40]} Nb6 {[%emt 0:06:33]} 13. a3 {[%emt 0:04:10]} g5 {[%emt 0:05:24]} 14. Nce4 {[%emt 0:04:09]} Nxe4 {[%emt 0:02:45]} 15. Nxe4 {[%emt 0:00:43]} Qd5 {[%emt 0:01:03]} 16. Bd2 {[%emt 0:17:54]} h5 {[%emt 0:18:40]} 17. Bb4 {[%emt 0:05:19]} g4 {[%emt 0:07:56]} 18. Bxe7 {[%emt 0:05:22]} Kxe7 {[%emt 0:00:21]} 19. h4 {[%emt 0:01:24]} Rad8 {[%emt 0:04:33]} 20. Rad1 {[%emt 0:03:18]} Qc4 {[%emt 0:07:43]} 21. b3 {[%emt 0:06:00]} Qxd3 {[%emt 0:01:44]} 22. Rxd3 {[%emt 0:00:11]} Nd5 {[%emt 0:03:12]} 23. g3 {[%emt 0:01:57]} b6 {[%emt 0:02:24]} 24. c4 {[%emt 0:01:33]} Nf6 {[%emt 0:02:15]} 25. Nc3 {[%emt 0:01:31]} Rd6 {[%emt 0:02:45]} 26. Rdd1 {[%emt 0:09:28]} Rhd8 {[%emt 0:02:20]} 27. Ne2 {[%emt 0:03:17]} Kf8 {[%emt 0:02:00]} 28. b4 {[%emt 0:02:16]} c5 {[%emt 0:01:09]} 29. Nf4 {[%emt 0:02:36]} Rxd4 {[%emt 0:04:59]} 30. Rc1 {[%emt 0:01:37]} Re8 {[%emt 0:02:51]} 31. Re5 {[%emt 0:01:20]} cxb4 {[%emt 0:02:15]} 32. axb4 {[%emt 0:00:12]} Rc8 {[%emt 0:02:29]} 33. Rxe6 {[%emt 0:00:44]} Rxf4 {[%emt 0:01:07]} 34. Rd6 {[%emt 0:02:45]} Rf5 {[%emt 0:00:25]} 35. c5 {[%emt 0:01:49]} bxc5 {[%emt 0:01:04]} 36. bxc5 {[%emt 0:00:11]} Ne4 {[%emt 0:01:32]} 37. Ra6 {[%emt 0:01:43]} Rcxc5 {[%emt 0:00:21]} 38. Re1 {[%emt 0:02:26]} Nxf2 {[%emt 0:01:09]} 39. Re2 {[%emt 0:02:34]} Nh3+ {[%emt 0:01:02]} 40. Kg2 {[%emt 0:00:13]} Rf3 {[%emt 0:01:18]} 41. Rxa7 {[%emt 0:31:09]} Rcc3 {[%emt 0:30:26]} 42. Rd2 {[%emt 0:00:00]} Rxg3+ {[%emt 0:00:00]} 43. Kh2 {[%emt 0:00:00]} Nf4 {[%emt 0:00:00]} 44. Rad7 {[%emt 0:00:00]} Rh3+ {[%emt 0:00:00]} 45. Kg1 {[%emt 0:00:00]} Rc1+ {[%emt 0:00:00]} 46. Kf2 {[%emt 0:00:00]} Rf3# 0-1

[Event "CZE-ch U16 Girls 2023"]
[Site "Teplice"]
[Date "2023.03.14"]
[Round "5.5"]
[White "Stavova, Marketa"]
[Black "Archlebova, Stela"]
[Result "1-0"]
[ECO "C50"]
[WhiteElo "1284"]
[BlackElo "1360"]
[Annotator "NA RC COMBH"]
[PlyCount "113"]
[EventDate "2023.03.09"]
[EventType "swiss"]
[EventCountry "CZE"]
[SourceTitle "playchess.com"]
[Source "ChessBase"]
[SourceQuality "1"]
[TimeControl "40/5400+30:1800+30"]

1. e4 {[%emt 0:00:07]} e5 {[%emt 0:00:07]} 2. Nf3 {[%emt 0:00:27]} Nc6 {[%emt 0:00:38]} 3. Bc4 {[%emt 0:00:34]} Nf6 {[%emt 0:00:10]} 4. d3 {[%emt 0:00:44]} Bc5 {[%emt 0:00:33]} 5. c3 {[%emt 0:01:03]} d6 {[%emt 0:01:03]} 6. O-O {[%emt 0:01:13]} Bg4 {[%emt 0:00:11]} 7. h3 {[%emt 0:00:19]} Bh5 {[%emt 0:00:14]} 8. Nbd2 {[%emt 0:00:32]} O-O {[%emt 0:00:31]} 9. Re1 {[%emt 0:01:08]} Qd7 {[%emt 0:02:21]} 10. Nf1 {[%emt 0:01:32]} Rad8 {[%emt 0:02:35]} 11. Ng3 {[%emt 0:01:56]} Bxf3 {[%emt 0:04:32]} 12. Qxf3 {[%emt 0:00:35]} h6 {[%emt 0:00:50]} 13. Bxh6 {[%emt 0:02:32]} Ne7 {[%emt 0:13:27]} 14. Be3 {[%emt 0:08:52]} Bb6 {[%emt 0:01:10]} 15. Rad1 {[%emt 0:00:57]} c6 {[%emt 0:02:21]} 16. Bb3 {[%emt 0:01:27]} Qc7 {[%emt 0:01:23]} 17. d4 {[%emt 0:06:03]} Rfe8 {[%emt 0:02:36]} 18. Bg5 {[%emt 0:04:18]} Nh7 {[%emt 0:08:26]} 19. Qxf7+ {[%emt 0:01:37]} Kh8 {[%emt 0:00:14]} 20. Nh5 {[%emt 0:00:57]} Ng8 {[%emt 0:01:35]} 21. Bxd8 {[%emt 0:01:47]} Rxd8 {[%emt 0:00:51]} 22. Qxc7 {[%emt 0:00:49]} Bxc7 {[%emt 0:00:06]} 23. dxe5 {[%emt 0:00:08]} dxe5 {[%emt 0:00:22]} 24. Rxd8 {[%emt 0:00:10]} Bxd8 {[%emt 0:00:05]} 25. Rd1 {[%emt 0:00:18]} Bb6 {[%emt 0:00:22]} 26. Bxg8 {[%emt 0:00:41]} Kxg8 {[%emt 0:00:13]} 27. Rd7 {[%emt 0:00:12]} g6 {[%emt 0:00:30]} 28. Ng3 {[%emt 0:00:24]} Nf6 {[%emt 0:00:34]} 29. Rxb7 {[%emt 0:00:08]} Ne8 {[%emt 0:00:33]} 30. Re7 {[%emt 0:00:48]} Nd6 {[%emt 0:00:25]} 31. b3 {[%emt 0:01:22]} Ba5 {[%emt 0:00:25]} 32. c4 {[%emt 0:00:34]} Bc3 {[%emt 0:01:07]} 33. Rxa7 {[%emt 0:00:16]} Bd4 {[%emt 0:00:15]} 34. Ra6 {[%emt 0:00:46]} Nb7 {[%emt 0:00:40]} 35. Rxc6 {[%emt 0:00:21]} Nc5 {[%emt 0:00:15]} 36. Rxg6+ {[%emt 0:01:16]} Kf7 {[%emt 0:00:05]} 37. Rd6 {[%emt 0:02:18]} Nd3 {[%emt 0:00:23]} 38. Nf5 {[%emt 0:01:07]} Bxf2+ {[%emt 0:02:09]} 39. Kf1 {[%emt 0:00:11]} Bd4 {[%emt 0:00:34]} 40. Nxd4 {[%emt 0:00:18]} exd4 {[%emt 0:00:03]} 41. Rxd4 {[%emt 0:30:09]} Nb4 {[%emt 0:30:06]} 42. Rd2 {[%emt 0:01:43]} Ke6 {[%emt 0:00:11]} 43. a3 {[%emt 0:00:20]} Nc6 {[%emt 0:00:15]} 44. b4 {[%emt 0:00:50]} Ne5 {[%emt 0:00:19]} 45. Rd4 {[%emt 0:00:52]} Nc6 {[%emt 0:00:42]} 46. Rd5 {[%emt 0:00:23]} Ne5 {[%emt 0:00:18]} 47. Rxe5+ {[%emt 0:00:15]} Kxe5 {[%emt 0:00:05]} 48. b5 {[%emt 0:00:15]} Kd6 {[%emt 0:00:07]} 49. h4 {[%emt 0:00:12]} Kc5 {[%emt 0:00:12]} 50. h5 {[%emt 0:00:21]} Kb6 {[%emt 0:00:07]} 51. h6 {[%emt 0:00:14]} Ka5 {[%emt 0:00:04]} 52. h7 {[%emt 0:00:15]} Kb6 {[%emt 0:00:05]} 53. h8=Q {[%emt 0:00:18]} Kb7 {[%emt 0:00:12]} 54. Qh6 {[%emt 0:00:21]} Ka8 {[%emt 0:00:10]} 55. Qg7 {[%emt 0:00:13]} Kb8 {[%emt 0:00:08]} 56. b6 {[%emt 0:00:12]} Kc8 {[%emt 0:00:17]} 57. Qc7# 1-0

[Event "CZE-ch U16 Girls 2023"]
[Site "Teplice"]
[Date "2023.03.14"]
[Round "5.6"]
[White "Seda, Michaela"]
[Black "Barteckova, Denisa"]
[Result "0-1"]
[ECO "B13"]
[WhiteElo "1610"]
[BlackElo "1417"]
[Annotator "NA RC COMBH"]
[PlyCount "96"]
[EventDate "2023.03.09"]
[EventType "swiss"]
[EventCountry "CZE"]
[SourceTitle "playchess.com"]
[Source "ChessBase"]
[SourceQuality "1"]
[TimeControl "40/5400+30:1800+30"]

1. e4 {[%emt 0:00:03]} c6 {[%emt 0:00:04]} 2. d4 {[%emt 0:00:15]} d5 {[%emt 0:00:05]} 3. exd5 {[%emt 0:00:17]} cxd5 {[%emt 0:00:09]} 4. Bd3 {[%emt 0:00:16]} Nf6 {[%emt 0:00:38]} 5. c3 {[%emt 0:02:07]} g6 {[%emt 0:01:04]} 6. Bf4 {[%emt 0:01:59]} Nc6 {[%emt 0:01:00]} 7. Nf3 {[%emt 0:01:00]} Bf5 {[%emt 0:00:44]} 8. Bxf5 {[%emt 0:02:37]} gxf5 {[%emt 0:00:05]} 9. Ne5 {[%emt 0:05:08]} Nxe5 {[%emt 0:05:42]} 10. Bxe5 {[%emt 0:00:26]} Bg7 {[%emt 0:01:30]} 11. Nd2 {[%emt 0:03:34]} Rg8 {[%emt 0:01:21]} 12. Bxf6 {[%emt 0:09:02]} Bxf6 {[%emt 0:00:09]} 13. g3 {[%emt 0:00:55]} e6 {[%emt 0:01:34]} 14. Nb3 {[%emt 0:03:28]} b6 {[%emt 0:00:30]} 15. Qe2 {[%emt 0:01:32]} Qd7 {[%emt 0:03:22]} 16. a4 {[%emt 0:10:25]} a5 {[%emt 0:00:23]} 17. Nd2 {[%emt 0:01:14]} Qc6 {[%emt 0:03:33]} 18. O-O {[%emt 0:02:57]} Rg4 {[%emt 0:02:46]} 19. Nb1 {[%emt 0:05:09]} Kd7 {[%emt 0:02:14]} 20. Qd1 {[%emt 0:04:03]} h5 {[%emt 0:00:28]} 21. Na3 {[%emt 0:00:57]} h4 {[%emt 0:01:00]} 22. Nb5 {[%emt 0:00:46]} Rag8 {[%emt 0:01:27]} 23. Qf3 {[%emt 0:10:13]} Qc8 {[%emt 0:02:15]} 24. Kg2 {[%emt 0:01:21]} Qb8 {[%emt 0:01:03]} 25. Rg1 {[%emt 0:03:01]} R8g6 {[%emt 0:02:40]} 26. Kh1 {[%emt 0:06:21]} Qg8 {[%emt 0:00:24]} 27. h3 {[%emt 0:01:57]} Re4 {[%emt 0:16:29]} 28. gxh4 {[%emt 0:02:22]} Bxh4 {[%emt 0:02:04]} 29. Rae1 {[%emt 0:05:31]} Rxe1 {[%emt 0:05:22]} 30. Rxe1 {[%emt 0:00:09]} Bg5 {[%emt 0:00:37]} 31. c4 {[%emt 0:05:34]} dxc4 {[%emt 0:16:31]} 32. Qb7+ {[%emt 0:00:44]} Ke8 {[%emt 0:00:09]} 33. Qxb6 {[%emt 0:01:46]} Rh6 {[%emt 0:01:03]} 34. Qb8+ {[%emt 0:00:30]} Bd8 {[%emt 0:00:27]} 35. Qh2 {[%emt 0:04:01]} Bh4 {[%emt 0:05:50]} 36. Nd6+ {[%emt 0:01:30]} Kf8 {[%emt 0:03:34]} 37. Re2 {[%emt 0:03:38]} Qh8 {[%emt 0:01:08]} 38. d5 {[%emt 0:00:58]} Bg3 {[%emt 0:04:29]} 39. dxe6 {[%emt 0:01:19]} Rxh3 {[%emt 0:13:48]} 40. fxg3 {[%emt 0:00:27]} Rxh2+ {[%emt 0:01:56]} 41. Rxh2 {[%emt 0:30:05]} Qe5 {[%emt 0:00:55]} 42. e7+ {[%emt 0:00:00]} Kxe7 {[%emt 0:00:34]} 43. Rh6 {[%emt 0:00:00]} f6 {[%emt 0:01:19]} 44. Nc8+ {[%emt 0:00:00]} Ke6 {[%emt 0:01:12]} 45. Rh7 {[%emt 0:00:00]} Qxb2 {[%emt 0:01:42]} 46. Re7+ {[%emt 0:00:00]} Kd5 {[%emt 0:00:18]} 47. Rd7+ {[%emt 0:00:00]} Ke4 {[%emt 0:00:13]} 48. Nd6+ {[%emt 0:00:00]} Kf3 {[%emt 0:00:19]} 0-1